[Event "Titled Tuesday Blitz April 11 Early 2023"]
[White "Kopczynski, Michal"]
[Black "Arabidze, Meri"]
[WhiteFideId "1124200"]
[BlackFideId "13604040"]
[WhiteElo "2212"]
[BlackElo "2405"]
[Result "0-1"]
[Round "06"]
[TimeControl "180+2"]
[Date "2023.04.11"]
[WhiteClock "0:00:08"]
[BlackClock "0:00:21"]

1. e4 {[%clk 0:00:18]}  c5 {[%clk 0:02:58]} 2. d4 {[%clk 0:00:18]}  cxd4 {[%clk 0:02:58]} 3. c3 {[%clk 0:00:18]}  dxc3 {[%clk 0:02:57]} 4. Nxc3 {[%clk 0:00:19]}  Nc6 {[%clk 0:02:57]} 5. f4 {[%clk 0:00:20]}  e6 {[%clk 0:02:56]} 6. Nf3 {[%clk 0:00:20]}  d6 {[%clk 0:02:56]} 7. Bd3 {[%clk 0:00:21]}  a6 {[%clk 0:02:56]} 8. O-O {[%clk 0:00:22]}  Be7 {[%clk 0:02:56]} 9. Kh1 {[%clk 0:00:22]}  Nf6 {[%clk 0:02:56]} 10. Qe1 {[%clk 0:00:23]}  O-O {[%clk 0:02:48]} 11. Be3 {[%clk 0:00:24]}  e5 {[%clk 0:02:43]} 12. Rd1 {[%clk 0:00:24]}  Bg4 {[%clk 0:02:35]} 13. h3 {[%clk 0:00:23]}  Bxf3 {[%clk 0:02:35]} 14. Rxf3 {[%clk 0:00:24]}  exf4 {[%clk 0:02:21]} 15. Bxf4 {[%clk 0:00:24]}  Ne5 {[%clk 0:02:21]} 16. Bxe5 {[%clk 0:00:23]}  dxe5 {[%clk 0:02:22]} 17. Bxa6 {[%clk 0:00:24]}  Qb6 {[%clk 0:02:16]} 18. Bc4 {[%clk 0:00:24]}  Qxb2 {[%clk 0:02:11]} 19. Rb1 {[%clk 0:00:23]}  Qa3 {[%clk 0:01:52]} 20. Rxb7 {[%clk 0:00:20]}  Bb4 {[%clk 0:01:35]} 21. Qg3 {[%clk 0:00:13]}  Qc1+ {[%clk 0:01:28]} 22. Kh2 {[%clk 0:00:11]}  Bc5 {[%clk 0:01:24]} 23. Ne2 {[%clk 0:00:09]}  Qxc4 {[%clk 0:01:22]} 24. Rxf6 {[%clk 0:00:09]}  Qxe2 {[%clk 0:01:19]} 25. Rf5 {[%clk 0:00:09]}  Qd1 {[%clk 0:01:12]} 26. h4 {[%clk 0:00:09]}  Rxa2 {[%clk 0:00:47]} 27. Rg5 {[%clk 0:00:07]}  Qg1+ {[%clk 0:00:39]} 28. Kh3 {[%clk 0:00:08]}  Qh1+ {[%clk 0:00:39]} 29. Qh2 {[%clk 0:00:08]}  Qxh2+ {[%clk 0:00:38]} 30. Kxh2 {[%clk 0:00:09]}  Bd4 {[%clk 0:00:34]} 31. Kh3 {[%clk 0:00:09]}  h6 {[%clk 0:00:34]} 32. Rf5 {[%clk 0:00:09]}  Ra3+ {[%clk 0:00:34]} 33. g3 {[%clk 0:00:09]}  Re3 {[%clk 0:00:34]} 34. h5 {[%clk 0:00:05]}  Rxe4 {[%clk 0:00:33]} 35. g4 {[%clk 0:00:05]}  Re3+ {[%clk 0:00:33]} 36. Kg2 {[%clk 0:00:05]}  e4 {[%clk 0:00:29]} 37. g5 {[%clk 0:00:05]}  hxg5 {[%clk 0:00:29]} 38. Rxg5 {[%clk 0:00:06]}  Bf6 {[%clk 0:00:28]} 39. Rf5 {[%clk 0:00:06]}  Kh7 {[%clk 0:00:27]} 40. Kf2 {[%clk 0:00:04]}  Rf3+ {[%clk 0:00:27]} 41. Rxf3 {[%clk 0:00:04]}  exf3 {[%clk 0:00:28]} 42. Kxf3 {[%clk 0:00:05]}  Kh6 {[%clk 0:00:28]} 43. Kg4 {[%clk 0:00:05]}  Rd8 {[%clk 0:00:25]} 44. Rxf7 {[%clk 0:00:05]}  Rd4+ {[%clk 0:00:25]} 45. Kf5 {[%clk 0:00:06]}  Kxh5 {[%clk 0:00:22]} 46. Rf8 {[%clk 0:00:06]}  Rd5+ {[%clk 0:00:21]} 47. Ke6 {[%clk 0:00:06]}  Re5+ {[%clk 0:00:21]} 48. Kf7 {[%clk 0:00:07]}  Kg5 {[%clk 0:00:20]} 49. Rg8 {[%clk 0:00:07]}  Re7+ {[%clk 0:00:20]} 50. Kf8 {[%clk 0:00:07]}  Ra7 {[%clk 0:00:20]} 51. Ke8 {[%clk 0:00:05]}  Ra8+ {[%clk 0:00:20]} 52. Kf7 {[%clk 0:00:06]}  Rxg8 {[%clk 0:00:21]} 53. Kxg8 {[%clk 0:00:07]}  Kf5 {[%clk 0:00:21]} 54. Kf7 {[%clk 0:00:08]}  g5 {[%clk 0:00:21]} 0-1


[Site "https://www.chess.com"]

[Event "Titled Tuesday Blitz April 11 Early 2023"]
[White "wqws"]
[Black "Harriott, Tyrell"]
[BlackFideId "2086484"]
[WhiteElo "2607"]
[BlackElo "2107"]
[Result "1-0"]
[Round "06"]
[TimeControl "180+2"]
[Date "2023.04.11"]
[WhiteClock "0:00:23"]
[BlackClock "0:00:28"]

1. e4 {[%clk 0:03:00]}  e6 {[%clk 0:03:00]} 2. d4 {[%clk 0:02:58]}  d5 {[%clk 0:02:59]} 3. Nc3 {[%clk 0:02:59]}  f5 {[%clk 0:02:59]} 4. exf5 {[%clk 0:02:58]}  exf5 {[%clk 0:03:00]} 5. Nf3 {[%clk 0:02:58]}  Nf6 {[%clk 0:03:01]} 6. Bd3 {[%clk 0:02:59]}  Bd6 {[%clk 0:03:01]} 7. O-O {[%clk 0:02:59]}  O-O {[%clk 0:03:01]} 8. Ne5 {[%clk 0:03:00]}  Nc6 {[%clk 0:03:02]} 9. Nxc6 {[%clk 0:02:30]}  bxc6 {[%clk 0:03:03]} 10. f4 {[%clk 0:02:29]}  Ne4 {[%clk 0:03:00]} 11. Nxe4 {[%clk 0:02:29]}  fxe4 {[%clk 0:02:59]} 12. Be2 {[%clk 0:02:30]}  Qh4 {[%clk 0:02:57]} 13. g3 {[%clk 0:02:30]}  Qh3 {[%clk 0:02:54]} 14. Be3 {[%clk 0:02:30]}  Rb8 {[%clk 0:02:49]} 15. b3 {[%clk 0:02:30]}  Qe6 {[%clk 0:02:34]} 16. c4 {[%clk 0:02:29]}  Qf7 {[%clk 0:02:32]} 17. Rc1 {[%clk 0:02:28]}  Bh3 {[%clk 0:02:31]} 18. Rf2 {[%clk 0:02:27]}  Qg6 {[%clk 0:02:23]} 19. Kh1 {[%clk 0:02:22]}  Ba3 {[%clk 0:02:16]} 20. Rc2 {[%clk 0:02:20]}  a5 {[%clk 0:02:14]} 21. cxd5 {[%clk 0:02:16]}  cxd5 {[%clk 0:02:13]} 22. Rxc7 {[%clk 0:02:17]}  a4 {[%clk 0:02:09]} 23. Bf1 {[%clk 0:02:00]}  Bg4 {[%clk 0:02:08]} 24. Qc2 {[%clk 0:02:00]}  axb3 {[%clk 0:02:02]} 25. axb3 {[%clk 0:02:00]}  Bd6 {[%clk 0:02:00]} 26. Rc6 {[%clk 0:01:57]}  Ra8 {[%clk 0:01:59]} 27. b4 {[%clk 0:01:49]}  Bf3+ {[%clk 0:01:52]} 28. Rxf3 {[%clk 0:01:45]}  exf3 {[%clk 0:01:42]} 29. Qxg6 {[%clk 0:01:46]}  hxg6 {[%clk 0:01:42]} 30. Rxd6 {[%clk 0:01:46]}  Rfe8 {[%clk 0:01:39]} 31. Bf2 {[%clk 0:01:42]}  Ra2 {[%clk 0:01:35]} 32. Kg1 {[%clk 0:01:41]}  Rc8 {[%clk 0:01:32]} 33. b5 {[%clk 0:01:30]}  Rc1 {[%clk 0:01:31]} 34. Rc6 {[%clk 0:01:16]}  Rb1 {[%clk 0:01:16]} 35. Ra6 {[%clk 0:01:05]}  Rd2 {[%clk 0:01:10]} 36. Ra3 {[%clk 0:00:39]}  Rdd1 {[%clk 0:01:09]} 37. Rxf3 {[%clk 0:00:39]}  Rxf1+ {[%clk 0:01:09]} 38. Kg2 {[%clk 0:00:40]}  Rfc1 {[%clk 0:01:01]} 39. g4 {[%clk 0:00:34]}  Rxb5 {[%clk 0:01:00]} 40. f5 {[%clk 0:00:35]}  gxf5 {[%clk 0:00:57]} 41. gxf5 {[%clk 0:00:36]}  Rb6 {[%clk 0:00:54]} 42. Bg3 {[%clk 0:00:35]}  Rc2+ {[%clk 0:00:53]} 43. Kh3 {[%clk 0:00:36]}  Rh6+ {[%clk 0:00:53]} 44. Kg4 {[%clk 0:00:35]}  Kf7 {[%clk 0:00:52]} 45. Rb3 {[%clk 0:00:34]}  Kg8 {[%clk 0:00:47]} 46. Rb7 {[%clk 0:00:33]}  Ra2 {[%clk 0:00:43]} 47. Rd7 {[%clk 0:00:32]}  Ra5 {[%clk 0:00:42]} 48. Be5 {[%clk 0:00:31]}  Rh7 {[%clk 0:00:34]} 49. h4 {[%clk 0:00:29]}  Kf8 {[%clk 0:00:33]} 50. Bd6+ {[%clk 0:00:22]}  Kg8 {[%clk 0:00:31]} 51. Rd8+ {[%clk 0:00:22]}  Kf7 {[%clk 0:00:28]} 52. Rf8# {[%clk 0:00:23]} 1-0


[Site "https://www.chess.com"]

[Event "Titled Tuesday Blitz April 11 Early 2023"]
[White "Ambartsumova, Karina"]
[Black "Vanek, Tomas"]
[WhiteFideId "4166299"]
[BlackFideId "313459"]
[WhiteElo "2240"]
[BlackElo "2052"]
[Result "1-0"]
[Round "06"]
[TimeControl "180+2"]
[Date "2023.04.11"]
[WhiteClock "0:00:16"]
[BlackClock "0:00:36"]

1. e4 {[%clk 0:03:00]}  c5 {[%clk 0:02:58]} 2. Nf3 {[%clk 0:03:00]}  Nc6 {[%clk 0:02:58]} 3. d4 {[%clk 0:03:00]}  cxd4 {[%clk 0:02:58]} 4. Nxd4 {[%clk 0:03:01]}  Nf6 {[%clk 0:02:58]} 5. Nc3 {[%clk 0:03:02]}  e5 {[%clk 0:02:57]} 6. Ndb5 {[%clk 0:03:01]}  d6 {[%clk 0:02:57]} 7. Nd5 {[%clk 0:02:58]}  Nxd5 {[%clk 0:02:57]} 8. exd5 {[%clk 0:02:59]}  Nb8 {[%clk 0:02:57]} 9. c4 {[%clk 0:02:59]}  Be7 {[%clk 0:02:56]} 10. Be2 {[%clk 0:02:59]}  O-O {[%clk 0:02:55]} 11. O-O {[%clk 0:02:59]}  a6 {[%clk 0:02:55]} 12. Nc3 {[%clk 0:02:59]}  f5 {[%clk 0:02:54]} 13. a4 {[%clk 0:02:59]}  Nd7 {[%clk 0:02:53]} 14. a5 {[%clk 0:02:58]}  e4 {[%clk 0:02:47]} 15. f3 {[%clk 0:02:54]}  exf3 {[%clk 0:02:33]} 16. Bxf3 {[%clk 0:02:54]}  Ne5 {[%clk 0:02:33]} 17. Qe2 {[%clk 0:02:32]}  Bf6 {[%clk 0:02:25]} 18. Na4 {[%clk 0:02:15]}  Qxa5 {[%clk 0:02:09]} 19. Be3 {[%clk 0:01:56]}  Qd8 {[%clk 0:02:02]} 20. Nb6 {[%clk 0:01:52]}  Rb8 {[%clk 0:02:02]} 21. c5 {[%clk 0:01:41]}  g5 {[%clk 0:01:51]} 22. Qc2 {[%clk 0:01:25]}  f4 {[%clk 0:01:43]} 23. Bd2 {[%clk 0:01:04]}  dxc5 {[%clk 0:01:34]} 24. Qxc5 {[%clk 0:00:52]}  Nd3 {[%clk 0:01:22]} 25. Qa5 {[%clk 0:00:25]}  Bd4+ {[%clk 0:01:18]} 26. Kh1 {[%clk 0:00:25]}  Bxb6 {[%clk 0:01:17]} 27. Qc3 {[%clk 0:00:22]}  Nf2+ {[%clk 0:01:15]} 28. Rxf2 {[%clk 0:00:22]}  Bxf2 {[%clk 0:01:15]} 29. Qe5 {[%clk 0:00:21]}  Bf5 {[%clk 0:01:02]} 30. Bc3 {[%clk 0:00:22]}  Qd7 {[%clk 0:00:41]} 31. Qh8+ {[%clk 0:00:20]}  Kf7 {[%clk 0:00:41]} 32. Bh5+ {[%clk 0:00:19]}  Bg6 {[%clk 0:00:41]} 33. Qxh7+ {[%clk 0:00:19]}  Ke8 {[%clk 0:00:37]} 34. Qxg6+ {[%clk 0:00:19]}  Kd8 {[%clk 0:00:37]} 35. Bf6+ {[%clk 0:00:15]}  Kc7 {[%clk 0:00:36]} 36. Rc1+ {[%clk 0:00:16]}  Kb6 {[%clk 0:00:35]} 37. Bd4+ {[%clk 0:00:15]}  Ka5 {[%clk 0:00:35]} 38. Qb6+ {[%clk 0:00:16]}  Ka4 {[%clk 0:00:36]} 39. Bd1# {[%clk 0:00:16]} 1-0


[Site "https://www.chess.com"]

[Event "Titled Tuesday Blitz April 11 Early 2023"]
[White "Bacrot, Etienne"]
[Black "morozcoma"]
[WhiteFideId "605506"]
[WhiteElo "2663"]
[BlackElo "2282"]
[Result "1-0"]
[Round "06"]
[TimeControl "180+2"]
[Date "2023.04.11"]
[WhiteClock "0:00:03"]
[BlackClock "0:00:04"]

1. e4 {[%clk 0:03:00]}  e5 {[%clk 0:02:59]} 2. Nf3 {[%clk 0:03:00]}  Nc6 {[%clk 0:03:00]} 3. Bb5 {[%clk 0:03:00]}  a6 {[%clk 0:02:59]} 4. Ba4 {[%clk 0:02:59]}  Nf6 {[%clk 0:02:59]} 5. O-O {[%clk 0:02:59]}  Nxe4 {[%clk 0:02:54]} 6. Re1 {[%clk 0:02:57]}  Nc5 {[%clk 0:02:51]} 7. Bxc6 {[%clk 0:02:57]}  dxc6 {[%clk 0:02:52]} 8. d4 {[%clk 0:02:56]}  Ne6 {[%clk 0:02:51]} 9. Nxe5 {[%clk 0:02:53]}  Bd6 {[%clk 0:02:48]} 10. Nc3 {[%clk 0:02:51]}  O-O {[%clk 0:02:47]} 11. Nf3 {[%clk 0:02:45]}  h6 {[%clk 0:02:28]} 12. Ne4 {[%clk 0:02:39]}  Bf4 {[%clk 0:02:15]} 13. Bxf4 {[%clk 0:02:33]}  Nxf4 {[%clk 0:02:16]} 14. Qd2 {[%clk 0:02:33]}  Ng6 {[%clk 0:02:14]} 15. h3 {[%clk 0:02:27]}  Qd5 {[%clk 0:02:09]} 16. b3 {[%clk 0:02:24]}  Bf5 {[%clk 0:02:03]} 17. c4 {[%clk 0:02:22]}  Qd8 {[%clk 0:01:58]} 18. Ng3 {[%clk 0:02:22]}  Be6 {[%clk 0:01:54]} 19. Re2 {[%clk 0:02:19]}  Qf6 {[%clk 0:01:53]} 20. Nh5 {[%clk 0:02:13]}  Qf5 {[%clk 0:01:45]} 21. Ng3 {[%clk 0:02:04]}  Qf6 {[%clk 0:01:44]} 22. Re4 {[%clk 0:01:51]}  Bxh3 {[%clk 0:01:26]} 23. Rae1 {[%clk 0:01:30]}  Bf5 {[%clk 0:01:09]} 24. R4e3 {[%clk 0:01:04]}  Nf4 {[%clk 0:00:46]} 25. Ne5 {[%clk 0:00:44]}  Rae8 {[%clk 0:00:37]} 26. Rf3 {[%clk 0:00:41]}  g5 {[%clk 0:00:30]} 27. Rxf4 {[%clk 0:00:40]}  gxf4 {[%clk 0:00:22]} 28. Qxf4 {[%clk 0:00:40]}  Qg5 {[%clk 0:00:20]} 29. Qxf5 {[%clk 0:00:27]}  f6 {[%clk 0:00:19]} 30. Nf3 {[%clk 0:00:26]}  Rxe1+ {[%clk 0:00:14]} 31. Nxe1 {[%clk 0:00:25]}  Re8 {[%clk 0:00:15]} 32. Nf3 {[%clk 0:00:24]}  Qxf5 {[%clk 0:00:11]} 33. Nxf5 {[%clk 0:00:24]}  Re2 {[%clk 0:00:12]} 34. Nxh6+ {[%clk 0:00:10]}  Kf8 {[%clk 0:00:11]} 35. Ng4 {[%clk 0:00:10]}  Rxa2 {[%clk 0:00:11]} 36. Nxf6 {[%clk 0:00:10]}  Rb2 {[%clk 0:00:11]} 37. Nd7+ {[%clk 0:00:09]}  Ke7 {[%clk 0:00:09]} 38. Nc5 {[%clk 0:00:10]}  b6 {[%clk 0:00:09]} 39. Nxa6 {[%clk 0:00:10]}  Rxb3 {[%clk 0:00:10]} 40. Ne5 {[%clk 0:00:09]}  Kd6 {[%clk 0:00:08]} 41. g4 {[%clk 0:00:04]}  c5 {[%clk 0:00:09]} 42. g5 {[%clk 0:00:03]}  cxd4 {[%clk 0:00:09]} 43. g6 {[%clk 0:00:03]}  Rb1+ {[%clk 0:00:04]} 44. Kg2 {[%clk 0:00:03]}  Ke7 {[%clk 0:00:04]} 45. g7 {[%clk 0:00:03]} 1-0


[Site "https://www.chess.com"]

[Event "Titled Tuesday Blitz April 11 Early 2023"]
[White "Karttunen, Mika"]
[Black "Liu, Casper"]
[WhiteFideId "502081"]
[BlackFideId "1454153"]
[WhiteElo "2396"]
[BlackElo "2221"]
[Result "1-0"]
[Round "06"]
[TimeControl "180+2"]
[Date "2023.04.11"]
[WhiteClock "0:01:25"]
[BlackClock "0:01:02"]

1. c4 {[%clk 0:03:00]}  Nc6 {[%clk 0:02:55]} 2. Nc3 {[%clk 0:02:58]}  d6 {[%clk 0:02:54]} 3. g3 {[%clk 0:02:58]}  Bd7 {[%clk 0:02:53]} 4. Bg2 {[%clk 0:02:58]}  Qc8 {[%clk 0:02:53]} 5. d4 {[%clk 0:02:57]}  h5 {[%clk 0:02:53]} 6. h3 {[%clk 0:02:55]}  h4 {[%clk 0:02:43]} 7. g4 {[%clk 0:02:54]}  f5 {[%clk 0:02:44]} 8. g5 {[%clk 0:02:45]}  e5 {[%clk 0:02:42]} 9. Nf3 {[%clk 0:02:25]}  e4 {[%clk 0:02:36]} 10. Ng1 {[%clk 0:02:24]}  g6 {[%clk 0:02:36]} 11. Bf4 {[%clk 0:02:10]}  Bg7 {[%clk 0:02:36]} 12. e3 {[%clk 0:02:10]}  Nge7 {[%clk 0:02:37]} 13. f3 {[%clk 0:02:10]}  O-O {[%clk 0:02:19]} 14. Qd2 {[%clk 0:01:57]}  b5 {[%clk 0:01:45]} 15. Nxb5 {[%clk 0:01:48]}  d5 {[%clk 0:01:20]} 16. Nxc7 {[%clk 0:01:39]}  Rb8 {[%clk 0:01:20]} 17. Nxd5 {[%clk 0:01:39]}  Nxd5 {[%clk 0:01:17]} 18. cxd5 {[%clk 0:01:39]}  Nb4 {[%clk 0:01:16]} 19. Bxb8 {[%clk 0:01:35]}  Qxb8 {[%clk 0:01:12]} 20. Ne2 {[%clk 0:01:26]}  Nd3+ {[%clk 0:01:02]} 21. Kf1 {[%clk 0:01:26]}  Qg3 {[%clk 0:01:02]} 22. Nxg3 {[%clk 0:01:25]} 1-0


[Site "https://www.chess.com"]

[Event "Titled Tuesday Blitz April 11 Early 2023"]
[White "Belov, Alexei"]
[Black "Melikhov, Evgeny V."]
[WhiteFideId "4128206"]
[BlackFideId "4122046"]
[WhiteElo "2628"]
[BlackElo "2158"]
[Result "1/2-1/2"]
[Round "06"]
[TimeControl "180+2"]
[Date "2023.04.11"]
[WhiteClock "0:00:25"]
[BlackClock "0:00:14"]

1. e4 {[%clk 0:03:00]}  e5 {[%clk 0:02:58]} 2. Nf3 {[%clk 0:03:00]}  Nc6 {[%clk 0:02:57]} 3. Bb5 {[%clk 0:03:00]}  a6 {[%clk 0:02:57]} 4. Ba4 {[%clk 0:03:00]}  Nf6 {[%clk 0:02:56]} 5. d4 {[%clk 0:03:00]}  exd4 {[%clk 0:02:55]} 6. O-O {[%clk 0:02:59]}  Nxe4 {[%clk 0:02:40]} 7. Re1 {[%clk 0:02:58]}  d5 {[%clk 0:02:39]} 8. Nxd4 {[%clk 0:02:58]}  b5 {[%clk 0:01:15]} 9. Nxc6 {[%clk 0:02:55]}  Qf6 {[%clk 0:01:15]} 10. f3 {[%clk 0:02:38]}  Bc5+ {[%clk 0:00:47]} 11. Be3 {[%clk 0:02:37]}  Qxc6 {[%clk 0:00:43]} 12. fxe4 {[%clk 0:02:08]}  d4 {[%clk 0:00:36]} 13. Bxd4 {[%clk 0:02:02]}  bxa4 {[%clk 0:00:36]} 14. Nc3 {[%clk 0:01:54]}  O-O {[%clk 0:00:29]} 15. Kh1 {[%clk 0:01:43]}  Bxd4 {[%clk 0:00:25]} 16. Qxd4 {[%clk 0:01:42]}  a3 {[%clk 0:00:25]} 17. bxa3 {[%clk 0:01:38]}  Be6 {[%clk 0:00:23]} 18. Rad1 {[%clk 0:01:34]}  h6 {[%clk 0:00:22]} 19. Rd2 {[%clk 0:01:33]}  Rfd8 {[%clk 0:00:21]} 20. Nd5 {[%clk 0:01:32]}  Bxd5 {[%clk 0:00:16]} 21. exd5 {[%clk 0:01:32]}  Qd6 {[%clk 0:00:16]} 22. c4 {[%clk 0:01:29]}  Qxa3 {[%clk 0:00:15]} 23. c5 {[%clk 0:01:26]}  Rab8 {[%clk 0:00:15]} 24. h3 {[%clk 0:01:20]}  Qb4 {[%clk 0:00:14]} 25. d6 {[%clk 0:01:15]}  Qxd4 {[%clk 0:00:13]} 26. Rxd4 {[%clk 0:01:14]}  cxd6 {[%clk 0:00:14]} 27. cxd6 {[%clk 0:01:14]}  Rd7 {[%clk 0:00:14]} 28. Red1 {[%clk 0:01:08]}  Rbd8 {[%clk 0:00:14]} 29. Kg1 {[%clk 0:01:07]}  f6 {[%clk 0:00:13]} 30. Kf2 {[%clk 0:01:05]}  Kf7 {[%clk 0:00:13]} 31. Kf3 {[%clk 0:00:28]}  Ke6 {[%clk 0:00:13]} 32. Re4+ {[%clk 0:00:27]}  Kf7 {[%clk 0:00:13]} 33. Red4 {[%clk 0:00:25]}  Ke6 {[%clk 0:00:14]} 34. Re4+ {[%clk 0:00:25]}  Kf7 {[%clk 0:00:14]} 35. Red4 {[%clk 0:00:25]} 1/2-1/2


[Site "https://www.chess.com"]

[Event "Titled Tuesday Blitz April 11 Early 2023"]
[White "Safin, Robert"]
[Black "Gonzalez, Francisco Silva"]
[WhiteFideId "34189120"]
[BlackFideId "1512285"]
[WhiteElo "2245"]
[BlackElo "2074"]
[Result "0-1"]
[Round "06"]
[TimeControl "180+2"]
[Date "2023.04.11"]
[WhiteClock "0:00:02"]
[BlackClock "0:02:09"]

1. e4 {[%clk 0:02:38]}  e5 {[%clk 0:02:59]} 2. Nf3 {[%clk 0:02:37]}  Nc6 {[%clk 0:02:59]} 3. Bb5 {[%clk 0:02:36]}  a6 {[%clk 0:02:59]} 4. Bxc6 {[%clk 0:02:34]}  dxc6 {[%clk 0:02:58]} 5. d4 {[%clk 0:02:34]}  exd4 {[%clk 0:02:57]} 6. Qxd4 {[%clk 0:02:35]}  Qxd4 {[%clk 0:02:58]} 7. Nxd4 {[%clk 0:02:34]}  Bd7 {[%clk 0:02:59]} 8. Nc3 {[%clk 0:02:30]}  O-O-O {[%clk 0:02:59]} 9. Be3 {[%clk 0:02:28]}  h5 {[%clk 0:02:59]} 10. f3 {[%clk 0:02:20]}  Ne7 {[%clk 0:02:59]} 11. Na4 {[%clk 0:02:01]}  b6 {[%clk 0:02:58]} 12. Nc3 {[%clk 0:01:46]}  Re8 {[%clk 0:02:55]} 13. O-O-O {[%clk 0:01:42]}  f5 {[%clk 0:02:51]} 14. e5 {[%clk 0:01:35]}  f4 {[%clk 0:02:44]} 15. Bxf4 {[%clk 0:00:26]}  Ng6 {[%clk 0:02:43]} 16. e6 {[%clk 0:00:26]}  Bxe6 {[%clk 0:02:40]} 17. Nxe6 {[%clk 0:00:26]}  Rxe6 {[%clk 0:02:40]} 18. Bg5 {[%clk 0:00:25]}  Bb4 {[%clk 0:02:39]} 19. Ne4 {[%clk 0:00:22]}  Be7 {[%clk 0:02:39]} 20. h4 {[%clk 0:00:09]}  Re8 {[%clk 0:02:36]} 21. c3 {[%clk 0:00:08]}  c5 {[%clk 0:02:35]} 22. Kc2 {[%clk 0:00:07]}  Ne5 {[%clk 0:02:32]} 23. Bxe7 {[%clk 0:00:06]}  R6xe7 {[%clk 0:02:32]} 24. Rhe1 {[%clk 0:00:04]}  Nc4 {[%clk 0:02:31]} 25. b3 {[%clk 0:00:04]}  Na5 {[%clk 0:02:24]} 26. Re2 {[%clk 0:00:02]}  Nc6 {[%clk 0:02:24]} 27. Rde1 {[%clk 0:00:02]}  Kb7 {[%clk 0:02:23]} 28. Ng3 {[%clk 0:00:01]}  Rxe2+ {[%clk 0:02:18]} 29. Rxe2 {[%clk 0:00:02]}  Rxe2+ {[%clk 0:02:17]} 30. Nxe2 {[%clk 0:00:03]}  Ne5 {[%clk 0:02:15]} 31. Nf4 {[%clk 0:00:03]}  g6 {[%clk 0:02:13]} 32. Kd2 {[%clk 0:00:03]}  Kc6 {[%clk 0:02:13]} 33. Ke3 {[%clk 0:00:04]}  Kd6 {[%clk 0:02:13]} 34. Ke4 {[%clk 0:00:04]}  c6 {[%clk 0:02:13]} 35. g3 {[%clk 0:00:03]}  b5 {[%clk 0:02:11]} 36. a3 {[%clk 0:00:03]}  a5 {[%clk 0:02:10]} 37. a4 {[%clk 0:00:02]}  c4 {[%clk 0:02:09]} 0-1


[Site "https://www.chess.com"]

[Event "Titled Tuesday Blitz April 11 Early 2023"]
[White "Leebit02"]
[Black "Gabdrakhmanov, Azat"]
[BlackFideId "34189197"]
[WhiteElo "2428"]
[BlackElo "2306"]
[Result "1-0"]
[Round "06"]
[TimeControl "180+2"]
[Date "2023.04.11"]
[WhiteClock "0:00:20"]
[BlackClock "0:00:27"]

1. Nf3 {[%clk 0:03:00]}  c5 {[%clk 0:03:00]} 2. b3 {[%clk 0:02:58]}  Nf6 {[%clk 0:03:00]} 3. Bb2 {[%clk 0:02:57]}  e6 {[%clk 0:03:01]} 4. e3 {[%clk 0:02:51]}  Be7 {[%clk 0:03:01]} 5. Be2 {[%clk 0:02:47]}  O-O {[%clk 0:03:02]} 6. O-O {[%clk 0:02:47]}  b6 {[%clk 0:03:02]} 7. d4 {[%clk 0:02:44]}  Bb7 {[%clk 0:03:03]} 8. c4 {[%clk 0:02:41]}  d6 {[%clk 0:03:03]} 9. Nc3 {[%clk 0:02:39]}  Nbd7 {[%clk 0:03:03]} 10. d5 {[%clk 0:02:35]}  exd5 {[%clk 0:03:03]} 11. cxd5 {[%clk 0:02:34]}  Re8 {[%clk 0:03:04]} 12. a4 {[%clk 0:02:31]}  Bf8 {[%clk 0:03:04]} 13. Re1 {[%clk 0:02:27]}  a6 {[%clk 0:03:02]} 14. Bf1 {[%clk 0:02:24]}  Ne4 {[%clk 0:03:00]} 15. Nxe4 {[%clk 0:02:21]}  Rxe4 {[%clk 0:03:01]} 16. Nd2 {[%clk 0:02:21]}  Rh4 {[%clk 0:02:54]} 17. e4 {[%clk 0:02:17]}  Rh6 {[%clk 0:02:50]} 18. g3 {[%clk 0:02:11]}  Nf6 {[%clk 0:02:39]} 19. Bg2 {[%clk 0:02:04]}  Bc8 {[%clk 0:02:37]} 20. h4 {[%clk 0:02:02]}  Ng4 {[%clk 0:02:33]} 21. Nc4 {[%clk 0:01:58]}  g5 {[%clk 0:02:28]} 22. e5 {[%clk 0:01:29]}  gxh4 {[%clk 0:02:13]} 23. e6 {[%clk 0:01:25]}  Nxf2 {[%clk 0:01:50]} 24. Kxf2 {[%clk 0:01:21]}  hxg3+ {[%clk 0:01:49]} 25. Kg1 {[%clk 0:01:10]}  Qh4 {[%clk 0:01:47]} 26. exf7+ {[%clk 0:01:01]}  Kxf7 {[%clk 0:01:48]} 27. Qf3+ {[%clk 0:00:59]}  Kg8 {[%clk 0:01:48]} 28. Re8 {[%clk 0:00:58]}  Bf5 {[%clk 0:01:10]} 29. Rxa8 {[%clk 0:00:53]}  Rh5 {[%clk 0:00:56]} 30. Nxd6 {[%clk 0:00:44]}  Qh2+ {[%clk 0:00:44]} 31. Kf1 {[%clk 0:00:44]}  Bd3+ {[%clk 0:00:44]} 32. Qxd3 {[%clk 0:00:37]}  Qh4 {[%clk 0:00:32]} 33. Qf3 {[%clk 0:00:32]}  Qe7 {[%clk 0:00:31]} 34. Re1 {[%clk 0:00:22]}  Qxd6 {[%clk 0:00:31]} 35. Qxh5 {[%clk 0:00:20]}  Qf4+ {[%clk 0:00:27]} 36. Qf3 {[%clk 0:00:20]} 1-0


[Site "https://www.chess.com"]

[Event "Titled Tuesday Blitz April 11 Early 2023"]
[White "Petre, Nad-Titus"]
[Black "Yeritsyan, Hayk"]
[WhiteFideId "1204165"]
[BlackFideId "13307320"]
[WhiteElo "2354"]
[BlackElo "2422"]
[Result "1-0"]
[Round "06"]
[TimeControl "180+2"]
[Date "2023.04.11"]
[WhiteClock "0:00:48"]
[BlackClock "0:00:16"]

1. e4 {[%clk 0:03:00]}  c6 {[%clk 0:02:59]} 2. d4 {[%clk 0:02:58]}  d5 {[%clk 0:03:00]} 3. exd5 {[%clk 0:02:59]}  cxd5 {[%clk 0:03:01]} 4. Bd3 {[%clk 0:03:00]}  Nf6 {[%clk 0:03:01]} 5. Bf4 {[%clk 0:02:57]}  Bg4 {[%clk 0:03:00]} 6. Ne2 {[%clk 0:02:52]}  Nc6 {[%clk 0:02:57]} 7. c3 {[%clk 0:02:52]}  e6 {[%clk 0:02:51]} 8. O-O {[%clk 0:02:49]}  Bd6 {[%clk 0:02:48]} 9. f3 {[%clk 0:02:34]}  Bh5 {[%clk 0:02:44]} 10. Qe1 {[%clk 0:02:32]}  Bxf4 {[%clk 0:02:40]} 11. Nxf4 {[%clk 0:02:31]}  O-O {[%clk 0:02:37]} 12. Nd2 {[%clk 0:02:27]}  Bg6 {[%clk 0:02:32]} 13. a4 {[%clk 0:02:18]}  Bxd3 {[%clk 0:02:32]} 14. Nxd3 {[%clk 0:02:18]}  Qc7 {[%clk 0:02:30]} 15. Qe2 {[%clk 0:02:07]}  Rfc8 {[%clk 0:02:25]} 16. g4 {[%clk 0:02:06]}  Na5 {[%clk 0:02:18]} 17. g5 {[%clk 0:01:53]}  Nd7 {[%clk 0:02:18]} 18. f4 {[%clk 0:01:53]}  g6 {[%clk 0:02:05]} 19. h4 {[%clk 0:01:53]}  Nc4 {[%clk 0:02:05]} 20. Nb3 {[%clk 0:01:48]}  Nd6 {[%clk 0:02:01]} 21. Kg2 {[%clk 0:01:43]}  Nf5 {[%clk 0:01:57]} 22. Rh1 {[%clk 0:01:42]}  Nb6 {[%clk 0:01:52]} 23. Nbc5 {[%clk 0:01:33]}  Nc4 {[%clk 0:01:48]} 24. Ne5 {[%clk 0:01:29]}  Nxe5 {[%clk 0:01:46]} 25. fxe5 {[%clk 0:01:29]}  b6 {[%clk 0:01:38]} 26. Nd3 {[%clk 0:01:28]}  Qe7 {[%clk 0:01:24]} 27. Rh3 {[%clk 0:01:23]}  Rc7 {[%clk 0:01:21]} 28. Nf2 {[%clk 0:01:18]}  h5 {[%clk 0:01:08]} 29. gxh6 {[%clk 0:01:13]}  Nxh4+ {[%clk 0:00:49]} 30. Kh2 {[%clk 0:01:08]}  Nf5 {[%clk 0:00:48]} 31. Ng4 {[%clk 0:01:04]}  Qg5 {[%clk 0:00:39]} 32. Rg1 {[%clk 0:01:01]}  Qf4+ {[%clk 0:00:37]} 33. Kh1 {[%clk 0:00:57]}  Rc4 {[%clk 0:00:25]} 34. Rf3 {[%clk 0:00:53]}  Qe4 {[%clk 0:00:19]} 35. Nf6+ {[%clk 0:00:53]}  Kh8 {[%clk 0:00:17]} 36. Nxe4 {[%clk 0:00:53]}  dxe4 {[%clk 0:00:18]} 37. Qxe4 {[%clk 0:00:50]}  Rac8 {[%clk 0:00:17]} 38. Rxf5 {[%clk 0:00:49]}  gxf5 {[%clk 0:00:16]} 39. Qh4 {[%clk 0:00:48]} 1-0


[Site "https://www.chess.com"]